[Event "Titled Tuesday Blitz October 18 Late 2022"]
[White "Pinheiro, Iung Alicio de O."]
[Black "Fajdetic, Hrvoje"]
[WhiteFideId "2104350"]
[BlackFideId "14501945"]
[WhiteElo "2283"]
[BlackElo "2172"]
[Result "1-0"]
[Round "09"]
[TimeControl "180+1"]
[Date "2022.10.18"]
[WhiteClock "0:00:14"]
[BlackClock "0:00:08"]

1. e4 {[%clk 0:03:00]}  e6 {[%clk 0:02:59]} 2. d4 {[%clk 0:02:59]}  d5 {[%clk 0:03:00]} 3. e5 {[%clk 0:02:59]}  c5 {[%clk 0:02:59]} 4. c3 {[%clk 0:03:00]}  Nc6 {[%clk 0:03:00]} 5. Nf3 {[%clk 0:03:01]}  Bd7 {[%clk 0:03:01]} 6. Bd3 {[%clk 0:03:01]}  cxd4 {[%clk 0:03:00]} 7. O-O {[%clk 0:03:00]}  f6 {[%clk 0:02:55]} 8. Bf4 {[%clk 0:02:30]}  fxe5 {[%clk 0:02:52]} 9. Nxe5 {[%clk 0:02:28]}  Nf6 {[%clk 0:02:52]} 10. Nxc6 {[%clk 0:01:55]}  bxc6 {[%clk 0:02:50]} 11. cxd4 {[%clk 0:01:55]}  Be7 {[%clk 0:02:44]} 12. Nd2 {[%clk 0:01:48]}  O-O {[%clk 0:02:44]} 13. Be5 {[%clk 0:01:42]}  c5 {[%clk 0:02:43]} 14. dxc5 {[%clk 0:01:38]}  Bxc5 {[%clk 0:02:42]} 15. Rc1 {[%clk 0:01:38]}  Bb6 {[%clk 0:02:41]} 16. Qe2 {[%clk 0:01:35]}  Rc8 {[%clk 0:02:35]} 17. h3 {[%clk 0:01:33]}  Qe7 {[%clk 0:02:22]} 18. Nf3 {[%clk 0:01:32]}  Rxc1 {[%clk 0:02:19]} 19. Rxc1 {[%clk 0:01:31]}  Rc8 {[%clk 0:02:19]} 20. Re1 {[%clk 0:01:30]}  Rf8 {[%clk 0:02:01]} 21. a3 {[%clk 0:01:26]}  Nh5 {[%clk 0:01:52]} 22. Bd4 {[%clk 0:01:11]}  Nf4 {[%clk 0:01:47]} 23. Qe3 {[%clk 0:01:09]}  Nxd3 {[%clk 0:01:41]} 24. Qxd3 {[%clk 0:01:07]}  Bxd4 {[%clk 0:01:38]} 25. Qxd4 {[%clk 0:01:08]}  Bc6 {[%clk 0:01:21]} 26. Qe5 {[%clk 0:01:04]}  Rf6 {[%clk 0:01:14]} 27. Nd4 {[%clk 0:01:03]}  Bd7 {[%clk 0:01:13]} 28. Qxd5 {[%clk 0:01:03]}  Qb4 {[%clk 0:00:43]} 29. Qa8+ {[%clk 0:00:57]}  Qf8 {[%clk 0:00:40]} 30. Qxa7 {[%clk 0:00:49]}  Bc8 {[%clk 0:00:34]} 31. Nc6 {[%clk 0:00:41]}  h6 {[%clk 0:00:29]} 32. Rc1 {[%clk 0:00:34]}  Kh8 {[%clk 0:00:27]} 33. Ne7 {[%clk 0:00:31]}  Ba6 {[%clk 0:00:19]} 34. Qxa6 {[%clk 0:00:26]}  Qxe7 {[%clk 0:00:19]} 35. Rc8+ {[%clk 0:00:26]}  Kh7 {[%clk 0:00:19]} 36. Qd3+ {[%clk 0:00:26]}  Rg6 {[%clk 0:00:19]} 37. Rc4 {[%clk 0:00:24]}  h5 {[%clk 0:00:17]} 38. Re4 {[%clk 0:00:19]}  Qg5 {[%clk 0:00:17]} 39. Qf3 {[%clk 0:00:19]}  Qc1+ {[%clk 0:00:16]} 40. Kh2 {[%clk 0:00:19]}  Qg5 {[%clk 0:00:15]} 41. g3 {[%clk 0:00:16]}  Kh6 {[%clk 0:00:12]} 42. Qf4 {[%clk 0:00:16]}  Qxf4 {[%clk 0:00:11]} 43. Rxf4 {[%clk 0:00:16]}  Rg5 {[%clk 0:00:11]} 44. b4 {[%clk 0:00:15]}  Rb5 {[%clk 0:00:10]} 45. a4 {[%clk 0:00:15]}  Rb8 {[%clk 0:00:10]} 46. b5 {[%clk 0:00:15]}  Kg6 {[%clk 0:00:09]} 47. Rb4 {[%clk 0:00:14]}  e5 {[%clk 0:00:08]} 48. b6 {[%clk 0:00:14]}  Kf5 {[%clk 0:00:08]} 49. a5 {[%clk 0:00:14]}  h4 {[%clk 0:00:08]} 50. a6 {[%clk 0:00:14]} 1-0


[Site "https://www.chess.com"]

[Event "Titled Tuesday Blitz October 18 Late 2022"]
[White "Remolar Gallen, Jose"]
[Black "Barria Zuniga, Daniel"]
[WhiteFideId "2215187"]
[BlackFideId "3400816"]
[WhiteElo "2214"]
[BlackElo "2414"]
[Result "0-1"]
[Round "09"]
[TimeControl "180+1"]
[Date "2022.10.18"]
[WhiteClock "0:00:01"]
[BlackClock "0:00:17"]

1. d4 {[%clk 0:03:00]}  g6 {[%clk 0:02:59]} 2. e4 {[%clk 0:03:00]}  Bg7 {[%clk 0:02:59]} 3. Nc3 {[%clk 0:03:00]}  c5 {[%clk 0:02:59]} 4. dxc5 {[%clk 0:03:00]}  Bxc3+ {[%clk 0:02:59]} 5. bxc3 {[%clk 0:03:00]}  Nf6 {[%clk 0:03:00]} 6. e5 {[%clk 0:02:54]}  Ne4 {[%clk 0:02:59]} 7. Qd4 {[%clk 0:02:52]}  Qa5 {[%clk 0:02:59]} 8. Qb4 {[%clk 0:02:49]}  Qxc5 {[%clk 0:02:57]} 9. Be3 {[%clk 0:02:36]}  Qxc3+ {[%clk 0:02:42]} 10. Qxc3 {[%clk 0:02:34]}  Nxc3 {[%clk 0:02:42]} 11. Bc4 {[%clk 0:02:25]}  b6 {[%clk 0:02:29]} 12. Bd4 {[%clk 0:02:09]}  Na4 {[%clk 0:02:20]} 13. O-O-O {[%clk 0:01:34]}  Nc6 {[%clk 0:01:54]} 14. Ba1 {[%clk 0:01:33]}  Nc5 {[%clk 0:01:51]} 15. e6 {[%clk 0:01:14]}  f6 {[%clk 0:01:48]} 16. exd7+ {[%clk 0:01:12]}  Bxd7 {[%clk 0:01:47]} 17. Nf3 {[%clk 0:01:12]}  O-O-O {[%clk 0:01:45]} 18. h4 {[%clk 0:01:05]}  e5 {[%clk 0:01:45]} 19. h5 {[%clk 0:01:05]}  Be6 {[%clk 0:01:41]} 20. Bxe6+ {[%clk 0:01:01]}  Nxe6 {[%clk 0:01:40]} 21. hxg6 {[%clk 0:00:58]}  hxg6 {[%clk 0:01:41]} 22. Rxd8+ {[%clk 0:00:55]}  Rxd8 {[%clk 0:01:40]} 23. Rh6 {[%clk 0:00:55]}  Ne7 {[%clk 0:01:14]} 24. g3 {[%clk 0:00:51]}  Kd7 {[%clk 0:01:02]} 25. Rh7 {[%clk 0:00:32]}  Rg8 {[%clk 0:00:58]} 26. Bc3 {[%clk 0:00:22]}  Rg7 {[%clk 0:00:52]} 27. Rh8 {[%clk 0:00:19]}  Nd5 {[%clk 0:00:50]} 28. Bd2 {[%clk 0:00:17]}  e4 {[%clk 0:00:33]} 29. Nh4 {[%clk 0:00:15]}  Kd6 {[%clk 0:00:33]} 30. c4 {[%clk 0:00:10]}  Rc7 {[%clk 0:00:31]} 31. Kd1 {[%clk 0:00:07]}  Rxc4 {[%clk 0:00:30]} 32. Nxg6 {[%clk 0:00:07]}  Ra4 {[%clk 0:00:28]} 33. Rb8 {[%clk 0:00:01]}  Rxa2 {[%clk 0:00:27]} 34. Rb7 {[%clk 0:00:01]}  Nd4 {[%clk 0:00:17]} 0-1


[Site "https://www.chess.com"]

[Event "Titled Tuesday Blitz October 18 Late 2022"]
[White "Romero Ruscalleda, Josep"]
[Black "Arnold, Ken"]
[WhiteFideId "2231859"]
[BlackFideId "2056836"]
[WhiteElo "2308"]
[BlackElo "2322"]
[Result "1-0"]
[Round "09"]
[TimeControl "180+1"]
[Date "2022.10.19"]
[WhiteClock "0:00:13"]
[BlackClock "0:00:04"]

1. e4 {[%clk 0:03:00]}  e5 {[%clk 0:02:59]} 2. Nf3 {[%clk 0:03:00]}  Nf6 {[%clk 0:02:58]} 3. Nxe5 {[%clk 0:02:59]}  d6 {[%clk 0:02:58]} 4. Nf3 {[%clk 0:02:59]}  Nxe4 {[%clk 0:02:57]} 5. Nc3 {[%clk 0:03:00]}  Nxc3 {[%clk 0:02:57]} 6. dxc3 {[%clk 0:03:00]}  Be7 {[%clk 0:02:57]} 7. Bf4 {[%clk 0:03:00]}  O-O {[%clk 0:02:57]} 8. Qd2 {[%clk 0:02:59]}  Nc6 {[%clk 0:02:54]} 9. O-O-O {[%clk 0:02:59]}  Bg4 {[%clk 0:02:51]} 10. Be2 {[%clk 0:02:54]}  Bf6 {[%clk 0:02:49]} 11. h3 {[%clk 0:02:54]}  Be6 {[%clk 0:02:44]} 12. Kb1 {[%clk 0:02:47]}  a6 {[%clk 0:02:42]} 13. g4 {[%clk 0:02:46]}  b5 {[%clk 0:02:37]} 14. g5 {[%clk 0:02:45]}  Be7 {[%clk 0:02:35]} 15. Nd4 {[%clk 0:02:45]}  Nxd4 {[%clk 0:02:33]} 16. cxd4 {[%clk 0:02:45]}  Bd5 {[%clk 0:02:30]} 17. Rhg1 {[%clk 0:02:44]}  Qc8 {[%clk 0:02:27]} 18. h4 {[%clk 0:02:38]}  Re8 {[%clk 0:02:13]} 19. h5 {[%clk 0:02:35]}  Bf8 {[%clk 0:02:12]} 20. g6 {[%clk 0:02:31]}  Bxa2+ {[%clk 0:02:04]} 21. Ka1 {[%clk 0:02:20]}  Bd5 {[%clk 0:01:59]} 22. Bd3 {[%clk 0:02:10]}  Be4 {[%clk 0:01:36]} 23. gxf7+ {[%clk 0:01:31]}  Kxf7 {[%clk 0:01:35]} 24. h6 {[%clk 0:01:21]}  g6 {[%clk 0:01:24]} 25. Be2 {[%clk 0:01:10]}  d5 {[%clk 0:01:16]} 26. Be5 {[%clk 0:01:04]}  Bf5 {[%clk 0:01:13]} 27. Bf3 {[%clk 0:00:57]}  c6 {[%clk 0:01:10]} 28. Qf4 {[%clk 0:00:51]}  Be7 {[%clk 0:01:02]} 29. Bg4 {[%clk 0:00:47]}  Bf6 {[%clk 0:00:59]} 30. Rde1 {[%clk 0:00:29]}  Bxe5 {[%clk 0:00:45]} 31. Rxe5 {[%clk 0:00:28]}  Rxe5 {[%clk 0:00:21]} 32. Qxe5 {[%clk 0:00:28]}  Bxg4 {[%clk 0:00:17]} 33. Qg7+ {[%clk 0:00:29]}  Ke8 {[%clk 0:00:12]} 34. Re1+ {[%clk 0:00:28]}  Be6 {[%clk 0:00:11]} 35. Qxh7 {[%clk 0:00:26]}  Kd8 {[%clk 0:00:08]} 36. Qxg6 {[%clk 0:00:24]}  Bd7 {[%clk 0:00:07]} 37. Qd6 {[%clk 0:00:24]}  Qb8 {[%clk 0:00:05]} 38. Qf6+ {[%clk 0:00:22]}  Kc7 {[%clk 0:00:05]} 39. h7 {[%clk 0:00:22]}  Qh8 {[%clk 0:00:05]} 40. Qf4+ {[%clk 0:00:21]}  Kb7 {[%clk 0:00:05]} 41. Re7 {[%clk 0:00:21]}  Rd8 {[%clk 0:00:05]} 42. Qd6 {[%clk 0:00:21]}  Kc8 {[%clk 0:00:05]} 43. Ka2 {[%clk 0:00:20]}  Qf8 {[%clk 0:00:04]} 44. c3 {[%clk 0:00:17]}  Qxf2 {[%clk 0:00:04]} 45. h8=Q {[%clk 0:00:13]} 1-0


[Site "https://www.chess.com"]

[Event "Titled Tuesday Blitz October 18 Late 2022"]
[White "Rustemov, Alexander"]
[Black "Noboa Silva, Kevin"]
[WhiteFideId "4119002"]
[BlackFideId "3618471"]
[WhiteElo "2754"]
[BlackElo "2178"]
[Result "1-0"]
[Round "09"]
[TimeControl "180+1"]
[Date "2022.10.18"]
[WhiteClock "0:00:04"]
[BlackClock "0:00:03"]

1. d4 {[%clk 0:03:00]}  e6 {[%clk 0:02:54]} 2. c4 {[%clk 0:03:00]}  Bb4+ {[%clk 0:02:54]} 3. Bd2 {[%clk 0:03:00]}  a5 {[%clk 0:02:54]} 4. Nf3 {[%clk 0:02:57]}  Nf6 {[%clk 0:02:53]} 5. g3 {[%clk 0:02:56]}  b6 {[%clk 0:02:52]} 6. Bg2 {[%clk 0:02:56]}  Bb7 {[%clk 0:02:53]} 7. O-O {[%clk 0:02:56]}  Bxd2 {[%clk 0:02:49]} 8. Qxd2 {[%clk 0:02:56]}  O-O {[%clk 0:02:50]} 9. Qf4 {[%clk 0:02:53]}  d6 {[%clk 0:02:41]} 10. Nc3 {[%clk 0:02:54]}  Nfd7 {[%clk 0:02:32]} 11. e4 {[%clk 0:02:53]}  Qf6 {[%clk 0:02:32]} 12. Qd2 {[%clk 0:02:50]}  e5 {[%clk 0:02:30]} 13. Rad1 {[%clk 0:02:36]}  exd4 {[%clk 0:02:30]} 14. Nxd4 {[%clk 0:02:34]}  Nc5 {[%clk 0:02:29]} 15. Rfe1 {[%clk 0:02:18]}  Nbd7 {[%clk 0:02:27]} 16. b3 {[%clk 0:02:15]}  Rfe8 {[%clk 0:02:20]} 17. h3 {[%clk 0:02:05]}  Rac8 {[%clk 0:02:13]} 18. Kh2 {[%clk 0:02:04]}  Ba8 {[%clk 0:01:59]} 19. f4 {[%clk 0:02:02]}  h5 {[%clk 0:01:50]} 20. h4 {[%clk 0:01:53]}  Rb8 {[%clk 0:01:26]} 21. a3 {[%clk 0:01:51]}  Ne6 {[%clk 0:00:58]} 22. Ndb5 {[%clk 0:01:46]}  Qd8 {[%clk 0:00:54]} 23. Bf3 {[%clk 0:01:40]}  Nf6 {[%clk 0:00:53]} 24. Kg2 {[%clk 0:01:35]}  Nc5 {[%clk 0:00:47]} 25. Qc2 {[%clk 0:01:28]}  Bc6 {[%clk 0:00:42]} 26. b4 {[%clk 0:01:23]}  axb4 {[%clk 0:00:42]} 27. axb4 {[%clk 0:01:24]}  Na6 {[%clk 0:00:42]} 28. Qb1 {[%clk 0:01:20]}  Bd7 {[%clk 0:00:39]} 29. e5 {[%clk 0:01:14]}  dxe5 {[%clk 0:00:24]} 30. Rxe5 {[%clk 0:00:58]}  Qc8 {[%clk 0:00:19]} 31. Rde1 {[%clk 0:00:48]}  Bh3+ {[%clk 0:00:16]} 32. Kf2 {[%clk 0:00:47]}  Qd7 {[%clk 0:00:16]} 33. Nd5 {[%clk 0:00:42]}  Ng4+ {[%clk 0:00:14]} 34. Bxg4 {[%clk 0:00:42]}  Bxg4 {[%clk 0:00:14]} 35. Re7 {[%clk 0:00:34]}  Rxe7 {[%clk 0:00:14]} 36. Rxe7 {[%clk 0:00:34]}  Qd8 {[%clk 0:00:13]} 37. Qe4 {[%clk 0:00:30]}  c6 {[%clk 0:00:12]} 38. Nbc3 {[%clk 0:00:18]}  cxd5 {[%clk 0:00:12]} 39. Nxd5 {[%clk 0:00:19]}  Be6 {[%clk 0:00:08]} 40. Rxe6 {[%clk 0:00:16]}  fxe6 {[%clk 0:00:08]} 41. Qxe6+ {[%clk 0:00:17]}  Kh8 {[%clk 0:00:08]} 42. Ne7 {[%clk 0:00:15]}  Qd4+ {[%clk 0:00:04]} 43. Kf3 {[%clk 0:00:15]}  Qd3+ {[%clk 0:00:04]} 44. Kf2 {[%clk 0:00:15]}  Nxb4 {[%clk 0:00:03]} 45. Qf7 {[%clk 0:00:10]}  Qd4+ {[%clk 0:00:03]} 46. Kf3 {[%clk 0:00:10]}  Qd3+ {[%clk 0:00:03]} 47. Kf2 {[%clk 0:00:10]}  Qd2+ {[%clk 0:00:02]} 48. Kf3 {[%clk 0:00:10]}  Qc3+ {[%clk 0:00:03]} 49. Kg2 {[%clk 0:00:10]}  Qc2+ {[%clk 0:00:03]} 50. Kh3 {[%clk 0:00:10]}  Rd8 {[%clk 0:00:02]} 51. Qxh5+ {[%clk 0:00:09]}  Qh7 {[%clk 0:00:03]} 52. Ng6+ {[%clk 0:00:09]}  Kg8 {[%clk 0:00:03]} 53. Qf5 {[%clk 0:00:09]}  Qh6 {[%clk 0:00:03]} 54. h5 {[%clk 0:00:09]}  Nc6 {[%clk 0:00:02]} 55. Qe6+ {[%clk 0:00:08]}  Kh7 {[%clk 0:00:03]} 56. Qxc6 {[%clk 0:00:08]}  Qxh5+ {[%clk 0:00:02]} 57. Nh4 {[%clk 0:00:08]}  Qh6 {[%clk 0:00:02]} 58. Qe4+ {[%clk 0:00:08]}  Kh8 {[%clk 0:00:02]} 59. Kg4 {[%clk 0:00:08]}  Qf6 {[%clk 0:00:02]} 60. Ng6+ {[%clk 0:00:08]}  Kg8 {[%clk 0:00:02]} 61. Ne5 {[%clk 0:00:08]}  Qe6+ {[%clk 0:00:02]} 62. Kg5 {[%clk 0:00:07]}  Qe7+ {[%clk 0:00:03]} 63. Kg4 {[%clk 0:00:07]}  Rd6 {[%clk 0:00:03]} 64. Qa8+ {[%clk 0:00:06]}  Qf8 {[%clk 0:00:04]} 65. Qb7 {[%clk 0:00:06]}  Rf6 {[%clk 0:00:04]} 66. Qd5+ {[%clk 0:00:06]}  Kh7 {[%clk 0:00:04]} 67. Nd7 {[%clk 0:00:05]}  Rg6+ {[%clk 0:00:04]} 68. Kf3 {[%clk 0:00:05]}  Qe7 {[%clk 0:00:03]} 69. Qh5+ {[%clk 0:00:04]}  Rh6 {[%clk 0:00:04]} 70. Qf5+ {[%clk 0:00:04]}  g6 {[%clk 0:00:04]} 71. Qg4 {[%clk 0:00:04]}  Rh5 {[%clk 0:00:04]} 72. Ne5 {[%clk 0:00:04]}  Qf6 {[%clk 0:00:03]} 73. Qd7+ {[%clk 0:00:04]}  Kh6 {[%clk 0:00:03]} 74. Ng4# {[%clk 0:00:04]} 1-0


[Site "https://www.chess.com"]

[Event "Titled Tuesday Blitz October 18 Late 2022"]
[White "Thiel, Thomas"]
[Black "Kobla, Vishal"]
[WhiteFideId "4615964"]
[BlackFideId "2078457"]
[WhiteElo "2260"]
[BlackElo "1972"]
[Result "1-0"]
[Round "09"]
[TimeControl "180+1"]
[Date "2022.10.19"]
[WhiteClock "0:00:50"]
[BlackClock "0:00:06"]

1. e4 {[%clk 0:03:00]}  c5 {[%clk 0:02:56]} 2. Nc3 {[%clk 0:02:59]}  Nc6 {[%clk 0:02:56]} 3. Bb5 {[%clk 0:02:57]}  Nd4 {[%clk 0:02:55]} 4. Bc4 {[%clk 0:02:57]}  e6 {[%clk 0:02:51]} 5. Nge2 {[%clk 0:02:57]}  Nf6 {[%clk 0:02:51]} 6. O-O {[%clk 0:02:55]}  d5 {[%clk 0:02:49]} 7. exd5 {[%clk 0:02:56]}  exd5 {[%clk 0:02:48]} 8. Nxd5 {[%clk 0:02:56]}  Nxd5 {[%clk 0:02:46]} 9. Nxd4 {[%clk 0:02:56]}  cxd4 {[%clk 0:02:40]} 10. Qh5 {[%clk 0:02:56]}  Be6 {[%clk 0:02:32]} 11. Re1 {[%clk 0:02:56]}  Nf4 {[%clk 0:01:31]} 12. Qb5+ {[%clk 0:02:53]}  Qd7 {[%clk 0:01:30]} 13. Qg5 {[%clk 0:02:32]}  Ng6 {[%clk 0:01:14]} 14. Bb5 {[%clk 0:02:29]}  Be7 {[%clk 0:01:04]} 15. Bxd7+ {[%clk 0:02:28]}  Kxd7 {[%clk 0:01:00]} 16. Qb5+ {[%clk 0:02:27]}  Kc7 {[%clk 0:01:00]} 17. d3 {[%clk 0:02:20]}  Rhd8 {[%clk 0:00:57]} 18. g3 {[%clk 0:02:07]}  Rd5 {[%clk 0:00:54]} 19. Qa4 {[%clk 0:02:01]}  a5 {[%clk 0:00:50]} 20. Bd2 {[%clk 0:02:01]}  b5 {[%clk 0:00:46]} 21. Bxa5+ {[%clk 0:01:25]}  Kb7 {[%clk 0:00:44]} 22. Qb3 {[%clk 0:01:24]}  Rxa5 {[%clk 0:00:44]} 23. a3 {[%clk 0:01:22]}  Rf5 {[%clk 0:00:21]} 24. Rxe6 {[%clk 0:01:20]}  fxe6 {[%clk 0:00:20]} 25. Qxe6 {[%clk 0:01:20]}  b4 {[%clk 0:00:19]} 26. Qd7+ {[%clk 0:01:18]}  Kb8 {[%clk 0:00:17]} 27. Qe8+ {[%clk 0:01:16]}  Kc7 {[%clk 0:00:17]} 28. Re1 {[%clk 0:01:15]}  Bd6 {[%clk 0:00:17]} 29. axb4 {[%clk 0:01:09]}  Bxb4 {[%clk 0:00:17]} 30. Re6 {[%clk 0:01:05]}  Ra1+ {[%clk 0:00:16]} 31. Kg2 {[%clk 0:01:03]}  Rc5 {[%clk 0:00:14]} 32. Qf7+ {[%clk 0:01:01]}  Kb8 {[%clk 0:00:12]} 33. Re8+ {[%clk 0:01:01]}  Rc8 {[%clk 0:00:13]} 34. Rxc8+ {[%clk 0:00:58]}  Kxc8 {[%clk 0:00:13]} 35. Qc4+ {[%clk 0:00:57]}  Kd7 {[%clk 0:00:11]} 36. Qxb4 {[%clk 0:00:57]}  Rc1 {[%clk 0:00:07]} 37. Qxd4+ {[%clk 0:00:56]}  Ke6 {[%clk 0:00:08]} 38. Qxg7 {[%clk 0:00:55]}  Rxc2 {[%clk 0:00:07]} 39. Qxh7 {[%clk 0:00:55]}  Ne5 {[%clk 0:00:08]} 40. Qg8+ {[%clk 0:00:54]}  Kd6 {[%clk 0:00:07]} 41. h4 {[%clk 0:00:50]}  Nxd3 {[%clk 0:00:06]} 42. Qd8+ {[%clk 0:00:50]}  Ke5 {[%clk 0:00:06]} 43. Qxd3 {[%clk 0:00:50]}  Rc5 {[%clk 0:00:06]} 44. Qe3+ {[%clk 0:00:50]} 1-0


[Site "https://www.chess.com"]

[Event "Titled Tuesday Blitz October 18 Late 2022"]
[White "Torres Boch, Jose Francisco"]
[Black "Winterberg, Lukas"]
[WhiteFideId "2278383"]
[BlackFideId "24622702"]
[WhiteElo "2073"]
[BlackElo "2349"]
[Result "1-0"]
[Round "09"]
[TimeControl "180+1"]
[Date "2022.10.19"]
[WhiteClock "0:01:17"]
[BlackClock "0:00:10"]

1. e4 {[%clk 0:02:56]}  c6 {[%clk 0:02:58]} 2. d4 {[%clk 0:02:55]}  d5 {[%clk 0:02:59]} 3. Nd2 {[%clk 0:02:54]}  dxe4 {[%clk 0:02:58]} 4. Nxe4 {[%clk 0:02:55]}  Bf5 {[%clk 0:02:58]} 5. Ng3 {[%clk 0:02:55]}  Bg6 {[%clk 0:02:58]} 6. h4 {[%clk 0:02:55]}  h6 {[%clk 0:02:58]} 7. Nf3 {[%clk 0:02:56]}  Nd7 {[%clk 0:02:57]} 8. h5 {[%clk 0:02:57]}  Bh7 {[%clk 0:02:57]} 9. Bd3 {[%clk 0:02:57]}  Bxd3 {[%clk 0:02:58]} 10. Qxd3 {[%clk 0:02:57]}  e6 {[%clk 0:02:59]} 11. Bd2 {[%clk 0:02:57]}  Ngf6 {[%clk 0:02:58]} 12. O-O-O {[%clk 0:02:57]}  Be7 {[%clk 0:02:51]} 13. Kb1 {[%clk 0:02:57]}  Qb6 {[%clk 0:02:50]} 14. c4 {[%clk 0:02:55]}  Rd8 {[%clk 0:02:50]} 15. Bf4 {[%clk 0:02:51]}  O-O {[%clk 0:02:40]} 16. Qc2 {[%clk 0:02:43]}  c5 {[%clk 0:02:24]} 17. d5 {[%clk 0:02:37]}  exd5 {[%clk 0:02:24]} 18. Nf5 {[%clk 0:02:35]}  Rfe8 {[%clk 0:02:20]} 19. cxd5 {[%clk 0:02:28]}  Bf8 {[%clk 0:02:08]} 20. g4 {[%clk 0:02:23]}  Nxg4 {[%clk 0:01:50]} 21. Rhg1 {[%clk 0:02:18]}  Ndf6 {[%clk 0:01:50]} 22. N3h4 {[%clk 0:02:13]}  Kh8 {[%clk 0:01:20]} 23. f3 {[%clk 0:02:01]}  Ne5 {[%clk 0:01:20]} 24. Qg2 {[%clk 0:01:55]}  Nxh5 {[%clk 0:00:43]} 25. Bxh6 {[%clk 0:01:54]}  g6 {[%clk 0:00:30]} 26. Bc1 {[%clk 0:01:49]}  Qf6 {[%clk 0:00:24]} 27. Ng3 {[%clk 0:01:36]}  Qxh4 {[%clk 0:00:20]} 28. Rh1 {[%clk 0:01:30]}  Qf6 {[%clk 0:00:11]} 29. Nxh5 {[%clk 0:01:29]}  Qxf3 {[%clk 0:00:09]} 30. Nf6+ {[%clk 0:01:21]}  Kg7 {[%clk 0:00:10]} 31. Rh7+ {[%clk 0:01:20]}  Kxf6 {[%clk 0:00:10]} 32. Qg5# {[%clk 0:01:17]} 1-0


[Site "https://www.chess.com"]

[Event "Titled Tuesday Blitz October 18 Late 2022"]
[White "Vlassov, Nikolai"]
[Black "Luxama, Jacques Muller"]
[WhiteFideId "4103360"]
[BlackFideId "11900113"]
[WhiteElo "2324"]
[BlackElo "1931"]
[Result "1-0"]
[Round "09"]
[TimeControl "180+1"]
[Date "2022.10.19"]
[WhiteClock "0:00:08"]
[BlackClock "0:00:02"]

1. e4 {[%clk 0:03:00]}  e5 {[%clk 0:02:58]} 2. Bc4 {[%clk 0:03:00]}  Nf6 {[%clk 0:02:57]} 3. d3 {[%clk 0:03:00]}  c6 {[%clk 0:02:56]} 4. Nf3 {[%clk 0:03:00]}  Be7 {[%clk 0:02:48]} 5. O-O {[%clk 0:02:59]}  d6 {[%clk 0:02:48]} 6. Nc3 {[%clk 0:02:58]}  O-O {[%clk 0:02:47]} 7. a4 {[%clk 0:02:58]}  Be6 {[%clk 0:02:47]} 8. Qe2 {[%clk 0:02:56]}  Nbd7 {[%clk 0:02:44]} 9. h3 {[%clk 0:02:54]}  h6 {[%clk 0:02:43]} 10. Nd2 {[%clk 0:02:46]}  Qc7 {[%clk 0:02:31]} 11. Re1 {[%clk 0:02:38]}  a6 {[%clk 0:02:28]} 12. a5 {[%clk 0:02:37]}  d5 {[%clk 0:02:25]} 13. exd5 {[%clk 0:02:14]}  cxd5 {[%clk 0:02:25]} 14. Bb3 {[%clk 0:02:14]}  Rfe8 {[%clk 0:02:21]} 15. Nf1 {[%clk 0:02:11]}  Bb4 {[%clk 0:02:13]} 16. Bd2 {[%clk 0:02:07]}  Bxc3 {[%clk 0:02:07]} 17. bxc3 {[%clk 0:01:58]}  e4 {[%clk 0:02:05]} 18. Ne3 {[%clk 0:01:44]}  Nc5 {[%clk 0:01:56]} 19. d4 {[%clk 0:01:35]}  Ncd7 {[%clk 0:01:40]} 20. c4 {[%clk 0:01:30]}  dxc4 {[%clk 0:01:39]} 21. Bxc4 {[%clk 0:01:17]}  Rac8 {[%clk 0:01:34]} 22. Bxe6 {[%clk 0:01:12]}  Rxe6 {[%clk 0:01:33]} 23. c4 {[%clk 0:01:11]}  Nf8 {[%clk 0:01:05]} 24. Rab1 {[%clk 0:01:05]}  Rc6 {[%clk 0:00:59]} 25. d5 {[%clk 0:01:04]}  Rd6 {[%clk 0:00:51]} 26. Nf5 {[%clk 0:00:51]}  Rd7 {[%clk 0:00:50]} 27. Ne3 {[%clk 0:00:35]}  Ng6 {[%clk 0:00:47]} 28. Rec1 {[%clk 0:00:16]}  Nf4 {[%clk 0:00:46]} 29. Qf1 {[%clk 0:00:17]}  Nd3 {[%clk 0:00:45]} 30. Rc3 {[%clk 0:00:17]}  Nc5 {[%clk 0:00:39]} 31. Rc2 {[%clk 0:00:14]}  Qe5 {[%clk 0:00:33]} 32. Bc3 {[%clk 0:00:13]}  Qg5 {[%clk 0:00:31]} 33. Bd4 {[%clk 0:00:11]}  Nh5 {[%clk 0:00:25]} 34. Rcb2 {[%clk 0:00:11]}  Nf4 {[%clk 0:00:20]} 35. Kh2 {[%clk 0:00:11]}  Nfd3 {[%clk 0:00:18]} 36. Rb6 {[%clk 0:00:10]}  Qf4+ {[%clk 0:00:14]} 37. Kh1 {[%clk 0:00:09]}  Nxf2+ {[%clk 0:00:14]} 38. Kg1 {[%clk 0:00:10]}  Nxh3+ {[%clk 0:00:13]} 39. gxh3 {[%clk 0:00:10]}  Qg3+ {[%clk 0:00:13]} 40. Qg2 {[%clk 0:00:10]}  Qxg2+ {[%clk 0:00:11]} 41. Kxg2 {[%clk 0:00:11]}  Nd3 {[%clk 0:00:03]} 42. Rxb7 {[%clk 0:00:10]}  Rxb7 {[%clk 0:00:03]} 43. Rxb7 {[%clk 0:00:09]}  Re8 {[%clk 0:00:04]} 44. d6 {[%clk 0:00:08]}  Nf4+ {[%clk 0:00:03]} 45. Kh2 {[%clk 0:00:07]}  Ne2 {[%clk 0:00:02]} 46. d7 {[%clk 0:00:08]}  Rd8 {[%clk 0:00:02]} 47. Bb6 {[%clk 0:00:08]}  Rxd7 {[%clk 0:00:02]} 48. Rxd7 {[%clk 0:00:08]} 1-0


[Site "https://www.chess.com"]

[Event "Titled Tuesday Blitz October 18 Late 2022"]
[White "Von Buelow, Georg"]
[Black "Harish, Neeraj"]
[WhiteFideId "4620658"]
[BlackFideId "30958130"]
[WhiteElo "2231"]
[BlackElo "1815"]
[Result "1-0"]
[Round "09"]
[TimeControl "180+1"]
[Date "2022.10.19"]
[WhiteClock "0:01:17"]
[BlackClock "0:00:30"]

1. e4 {[%clk 0:02:59]}  c5 {[%clk 0:02:57]} 2. Nf3 {[%clk 0:02:59]}  Nc6 {[%clk 0:02:57]} 3. d4 {[%clk 0:03:00]}  cxd4 {[%clk 0:02:57]} 4. Nxd4 {[%clk 0:03:00]}  Nf6 {[%clk 0:02:51]} 5. Nc3 {[%clk 0:03:00]}  e5 {[%clk 0:02:51]} 6. Ndb5 {[%clk 0:03:00]}  d6 {[%clk 0:02:51]} 7. Bg5 {[%clk 0:03:00]}  a6 {[%clk 0:02:51]} 8. Na3 {[%clk 0:03:01]}  b5 {[%clk 0:02:51]} 9. Bxf6 {[%clk 0:03:01]}  gxf6 {[%clk 0:02:47]} 10. Nd5 {[%clk 0:03:02]}  f5 {[%clk 0:02:47]} 11. c3 {[%clk 0:03:02]}  Bg7 {[%clk 0:02:44]} 12. exf5 {[%clk 0:03:02]}  Bxf5 {[%clk 0:02:44]} 13. Nc2 {[%clk 0:03:03]}  O-O {[%clk 0:02:43]} 14. Nce3 {[%clk 0:03:04]}  Be6 {[%clk 0:02:43]} 15. Bd3 {[%clk 0:03:04]}  f5 {[%clk 0:02:41]} 16. Qh5 {[%clk 0:03:05]}  e4 {[%clk 0:02:36]} 17. Bc2 {[%clk 0:03:05]}  Ne7 {[%clk 0:02:30]} 18. Rd1 {[%clk 0:03:04]}  Nxd5 {[%clk 0:02:01]} 19. Nxd5 {[%clk 0:03:03]}  Kh8 {[%clk 0:02:01]} 20. g4 {[%clk 0:03:02]}  h6 {[%clk 0:01:36]} 21. Nf4 {[%clk 0:02:38]}  Qf6 {[%clk 0:00:57]} 22. Rxd6 {[%clk 0:02:20]}  Rfe8 {[%clk 0:00:46]} 23. Bb3 {[%clk 0:01:59]}  Bf7 {[%clk 0:00:32]} 24. Bxf7 {[%clk 0:01:15]}  Qxd6 {[%clk 0:00:30]} 25. Ng6+ {[%clk 0:01:16]}  Kh7 {[%clk 0:00:30]} 26. Qxf5 {[%clk 0:01:17]} 1-0


[Site "https://www.chess.com"]